fUST/lending_fUST_20250518
["ID","MTS","AMOUNT","RATE_DAILY","PERIOD"]
[361388148,1747542649191,-450.0,0.00015342,2]
[361388149,1747542649201,-497.87,0.00015342,2]
[361388150,1747542649211,-450.0,0.00015342,2]
[361388151,1747542649220,-471.04,0.00015342,2]
[361388152,1747542649230,-825.0595699,0.00015377,2]
[361388153,1747542649239,-450.0,0.00015479,2]
[361388154,1747542649248,-497.87,0.00015479,2]
[361388155,1747542649258,-450.0,0.00015479,2]
[361388156,1747542649267,-471.04,0.00015479,2]
[361388157,1747542649277,-894.00924327,0.00015555,2]
[361388158,1747542649286,-156.210956,0.00015616,2]
[361388159,1747542649295,-156.210956,0.00015616,2]
[361388160,1747542649305,-450.0,0.00015616,2]
[361388161,1747542649316,-497.87,0.00015616,2]
[361388162,1747542649326,-450.0,0.00015616,2]
[361388163,1747542649336,-471.04,0.00015616,2]
[361388164,1747542649346,-450.0,0.00015753,2]
[361388165,1747542649355,-497.87,0.00015753,2]
[361388166,1747542649365,-450.0,0.00015753,2]
[361388167,1747542649375,-471.04,0.00015753,2]
[361388168,1747542649385,-450.0,0.0001589,2]
[361388169,1747542649394,-497.87,0.0001589,2]
[361388170,1747542649404,-450.0,0.0001589,2]
[361388171,1747542649413,-471.04,0.0001589,2]
[361388172,1747542649423,-894.00924327,0.00015969,2]
[361388173,1747542649433,-450.0,0.00016027,2]
[361388174,1747542649443,-497.87,0.00016027,2]
[361388175,1747542649452,-418.82,0.00016027,2]
[361388176,1747542649462,-471.04,0.00016027,2]
[361388177,1747542649472,-459.8,0.00016164,2]
[361388178,1747542649482,-497.87,0.00016164,2]
[361388179,1747542649492,-471.04,0.00016164,2]
[361388180,1747542649501,-497.87,0.00016301,2]
[361388181,1747542649511,-471.04,0.00016301,2]
[361388182,1747542649520,-894.00924327,0.00016383,2]
[361388183,1747542649531,-500.0,0.00016438,2]
[361388184,1747542649541,-500.0,0.00016438,2]
[361388185,1747542649550,-500.0,0.00016438,2]
[361388186,1747542649560,-500.0,0.00016438,2]
[361388187,1747542649570,-500.0,0.00016438,2]
[361388188,1747542649579,-500.0,0.00016438,2]
[361388189,1747542649589,-500.0,0.00016438,2]
[361388190,1747542649599,-500.0,0.00016438,2]
[361388191,1747542649608,-500.0,0.00016438,2]
[361388192,1747542649618,-500.0,0.00016438,2]
[361388193,1747542649627,-623.00177689,0.00016438,2]
[361388194,1747542649636,-500.0,0.00016438,2]
[361388195,1747542649646,-550.0,0.00016438,2]
[361388196,1747542649655,-497.87,0.00016438,2]
[361388197,1747542649665,-471.04,0.00016438,2]
[361388198,1747542649675,-497.87,0.00016575,2]
[361388199,1747542649685,-471.04,0.00016575,2]
[361388200,1747542649694,-497.87,0.00016712,2]
[361388201,1747542649704,-471.04,0.00016712,2]
[361388202,1747542649713,-894.00924327,0.00016797,2]
[361388203,1747542649722,-236.91,0.00016849,2]
[361388204,1747542649731,-156.210956,0.00016849,2]
[361388205,1747542649743,-156.210958,0.00016849,2]
[361388206,1747542649755,-497.96,0.00016849,2]
[361388207,1747542649764,-471.09,0.00016849,2]
[361388208,1747542649774,-288.01674987,0.00016967,2]
[361388209,1747542649785,-894.00924327,0.0001721,2]
[361388210,1747542649794,-894.00924327,0.00017624,2]
[361388211,1747542649805,-3000.0,0.00017941,2]
[361388212,1747542649814,-4044.6634084,0.00018,7]
[361388213,1747542649824,-894.00924327,0.00018038,2]
[361388214,1747542649834,-187.94166498,0.00018452,2]
[361388215,1747542649948,-706.06757829,0.00018452,2]
[361388216,1747542649958,-288.01674987,0.00018652,2]
[361388217,1747542649968,-151.0,0.00018865,2]
[361388218,1747542649977,-505.0392755,0.00018866,2]
[361388219,1747542886831,116600.0,0.00025468,30]
[361388272,1747543840210,1000.0,0.00027,120]
[361388318,1747544018651,1160.0,0.0002699,120]
[361388319,1747544078261,1000.43,0.00025444,30]
[361388320,1747544125865,1000.0,0.00025444,30]
[361388322,1747544602076,652.6803841,4.43e-06,2]
[361388324,1747544651085,444.32,0.0002739,120]
[361388361,1747544972248,-246.59637813,0.00013348,2]
[361388362,1747544974901,568.04056368,5.92e-06,2]
[361388363,1747544978408,-217.51099939,0.00013348,2]
[361388365,1747544980278,-172.58301585,0.00013348,2]
[361388366,1747544984353,-226.02228794,0.00013348,2]
[361388367,1747544985878,-193.85438719,0.00013348,2]
[361388368,1747544988037,-191.19989811,0.00013348,2]
[361388370,1747545010035,183.087065,0.00013173,120]
[361388411,1747545032213,-183.087065,0.00013173,2]
[361388413,1747545032231,-5000.0,0.00013214,2]
[361388416,1747545032242,-1746.88180829,0.00013348,2]
[361388418,1747545032254,-300.0,0.00013696,2]
[361388420,1747545032267,-3861.2580585,0.00013697,2]
[361388422,1747545032278,-450.0,0.00013698,2]
[361388425,1747545032291,-450.0,0.00013698,2]
[361388429,1747545032303,-450.0,0.00013698,2]
[361388432,1747545032315,-450.0,0.00013698,2]
[361388434,1747545032328,-450.57450537,0.00013698,2]
[361388436,1747545032339,-550.0,0.00013698,2]
[361388438,1747545032350,-309.5348379,0.00013698,2]
[361388439,1747545032361,-456.19722619,0.00013698,2]
[361388440,1747545032371,-591.08688262,0.00013698,2]
[361388441,1747545032382,-355.02424968,0.00013698,2]
[361388442,1747545032393,-450.0,0.00013698,2]
[361388443,1747545032405,-450.0,0.00013698,2]
[361388444,1747545032415,-402.14020553,0.00013698,2]
[361388445,1747545032426,-450.0,0.00013698,2]
[361388446,1747545032437,-450.0,0.00013698,2]
[361388447,1747545032449,-199.730868,0.00013699,2]
[361388448,1747545032460,-450.0,0.00013835,2]
[361388449,1747545032472,-450.0,0.00013972,2]
[361388450,1747545032483,-164.58099996,0.00014061,2]
[361388451,1747545032494,-450.0,0.00014109,2]
[361388452,1747545032504,-998.55070715,0.00014161,2]
[361388453,1747545032515,-160.0,0.00014161,2]
[361388454,1747545032525,-422.53311782,0.00014161,2]
[361388455,1747545032535,-160.0,0.00014161,2]
[361388456,1747545032544,-864.88719971,0.00014161,2]
[361388478,1747545038129,-4913.75851586,0.00014161,2]
[361388489,1747545040348,-2956.16785903,0.00014019,2]
[361388528,1747545304495,-241.59257698,0.000123,2]
[361388529,1747545306555,-167.12266569,0.000123,2]
[361388530,1747545309009,-259.75918594,0.000123,2]
[361388531,1747545312827,-18.6543849,0.000123,2]
[361388536,1747545603812,-201.6186663,0.000123,2]
[361388537,1747545608478,-173.94630546,0.000123,2]
[361388538,1747545610043,-4.6195239,0.000123,2]
[361388542,1747545894789,1000.0,0.00027,120]
[361388569,1747546121605,1000.0,0.0001,2]
[361388573,1747546172681,-174.61823763,0.00012243,2]
[361388574,1747546174735,-323.76223847,0.00012243,2]
[361388575,1747546176494,-152.0,0.00012243,2]
[361388576,1747546178193,-363.23596201,0.00012243,2]
[361388581,1747546218359,-180.03912739,0.00012243,2]
[361388927,1747546241823,-0.00193739,0.00012243,2]
[361388928,1747546241853,-314.22681974,0.00012243,2]
[361388933,1747546243311,-3492.11567737,0.00012243,2]
[361388934,1747546243321,-250.0,0.00012492,2]
[361388935,1747546243331,-300.0,0.00012731,2]
[361388936,1747546243340,-247.0,0.00012731,2]
[361388937,1747546243350,-1200.0,0.00012731,2]
[361388938,1747546243360,-300.0,0.00012731,2]
[361388939,1747546243369,-24900.0,0.00012732,2]
[361388940,1747546243378,-403.9870581,0.00012775,2]
[361388941,1747546243388,-651.79154691,0.00013598,2]
[361388942,1747546243398,-500.0,0.00013697,2]
[361388943,1747546243407,-500.0,0.00013697,2]
[361388944,1747546243425,-228.84954443,0.00013697,2]
[361388945,1747546243437,-500.0,0.00013697,2]
[361388946,1747546243447,-500.0,0.00013697,2]
[361388947,1747546243457,-361.36502478,0.00013697,2]
[361388948,1747546243467,-462.60178399,0.00013697,2]
[361388949,1747546243476,-500.0,0.00013697,2]
[361388950,1747546243486,-500.0,0.00013697,2]
[361388951,1747546243496,-500.0,0.00013697,2]
[361388952,1747546243696,-250.5747808,0.00013697,2]
[361388953,1747546243706,-500.0,0.00013697,2]
[361388954,1747546243716,-500.0,0.00013697,2]
[361388955,1747546243725,-500.0,0.00013697,2]
[361388956,1747546243735,-500.0,0.00013697,2]
[361388957,1747546243744,-500.0,0.00013697,2]
[361388958,1747546243754,-500.0,0.00013697,2]
[361388959,1747546243764,-500.0,0.00013697,2]
[361388960,1747546243773,-251.24246325,0.00013697,2]
[361388961,1747546243783,-500.0,0.00013697,2]
[361388962,1747546243792,-500.0,0.00013697,2]
[361388963,1747546243801,-500.0,0.00013697,2]
[361388964,1747546243810,-500.0,0.00013697,2]
[361388965,1747546243819,-450.0,0.00013698,2]
[361388966,1747546243829,-403.17689342,0.00013698,2]
[361388967,1747546243838,-480.92,0.00013698,2]
[361388968,1747546243847,-341.97321648,0.00013698,2]
[361388969,1747546243858,-400.0,0.00013698,2]
[361388970,1747546243867,-400.0,0.00013698,2]
[361388971,1747546243879,-401.70149613,0.00013698,2]
[361388972,1747546243888,-400.0,0.00013698,2]
[361388973,1747546243898,-400.0,0.00013698,2]
[361388974,1747546243907,-400.0,0.00013698,2]
[361388975,1747546243916,-400.0,0.00013698,2]
[361388976,1747546243926,-400.0,0.00013698,2]
[361388977,1747546243936,-493.78264003,0.00013698,2]
[361388978,1747546243947,-1000.0,0.00013698,2]
[361388979,1747546243959,-400.0,0.00013698,2]
[361388980,1747546243968,-406.371094,0.00013698,2]
[361388981,1747546243978,-200.0,0.00013698,2]
[361388982,1747546243991,-406.63182003,0.00013698,2]
[361388983,1747546244000,-400.0,0.00013698,2]
[361388984,1747546244010,-558.52803603,0.00013698,2]
[361388985,1747546244019,-518.97,0.00013698,2]
[361388986,1747546244029,-400.0,0.00013698,2]
[361388987,1747546244038,-401.44139286,0.00013698,2]
[361388988,1747546244047,-400.0,0.00013698,2]
[361388989,1747546244056,-400.0,0.00013698,2]
[361388990,1747546244066,-400.0,0.00013698,2]
[361388991,1747546244075,-400.0,0.00013698,2]
[361388992,1747546244084,-400.0,0.00013698,2]
[361388993,1747546244094,-400.0,0.00013698,2]
[361388994,1747546244103,-400.0,0.00013698,2]
[361388995,1747546244112,-400.0,0.00013698,2]
[361388996,1747546244121,-400.0,0.00013698,2]
[361388997,1747546244130,-552.8,0.00013698,2]
[361388998,1747546244139,-401.17159297,0.00013698,2]
[361388999,1747546244148,-400.0,0.00013698,2]
[361389000,1747546244158,-400.0,0.00013698,2]
[361389001,1747546244167,-400.0,0.00013698,2]
[361389002,1747546244176,-450.0,0.00013698,2]
[361389003,1747546244186,-436.36582167,0.00013698,2]
[361389004,1747546244195,-400.75111258,0.00013698,2]
[361389005,1747546244204,-405.24474873,0.00013698,2]
[361389006,1747546244213,-400.0,0.00013698,2]
[361389007,1747546244222,-400.0,0.00013698,2]
[361389008,1747546244232,-400.0,0.00013698,2]
[361389009,1747546244241,-450.0,0.00013698,2]
[361389010,1747546244251,-450.0,0.00013698,2]
[361389011,1747546244260,-401.22549832,0.00013698,2]
[361389012,1747546244270,-400.0,0.00013698,2]
[361389013,1747546244279,-400.0,0.00013698,2]
[361389014,1747546244289,-400.63906257,0.00013698,2]
[361389015,1747546244298,-450.0,0.00013698,2]
[361389016,1747546244308,-400.0,0.00013698,2]
[361389017,1747546244318,-400.0,0.00013698,2]
[361389018,1747546244327,-400.0,0.00013698,2]
[361389019,1747546244336,-400.0,0.00013698,2]
[361389020,1747546244346,-400.0,0.00013698,2]
[361389021,1747546244356,-450.0,0.00013698,2]
[361389022,1747546244365,-400.0,0.00013698,2]
[361389023,1747546244374,-401.17547133,0.00013698,2]
[361389024,1747546244383,-450.0,0.00013698,2]
[361389025,1747546244393,-450.0,0.00013698,2]
[361389026,1747546244403,-400.0,0.00013698,2]
[361389027,1747546244412,-400.0,0.00013698,2]
[361389028,1747546244422,-400.0,0.00013698,2]
[361389029,1747546244431,-400.0,0.00013698,2]
[361389030,1747546244442,-400.0,0.00013698,2]
[361389031,1747546244451,-400.0,0.00013698,2]
[361389032,1747546244462,-450.0,0.00013698,2]
[361389033,1747546244472,-400.0,0.00013698,2]
[361389034,1747546244481,-400.0,0.00013698,2]
[361389035,1747546244492,-401.14882864,0.00013698,2]
[361389036,1747546244502,-400.0,0.00013698,2]
[361389037,1747546244512,-450.0,0.00013698,2]
[361389038,1747546244522,-400.0,0.00013698,2]
[361389039,1747546244532,-400.0,0.00013698,2]
[361389040,1747546244541,-400.0,0.00013698,2]
[361389041,1747546244551,-450.0,0.00013698,2]
[361389042,1747546244561,-294.35823921,0.00013698,2]
[361389043,1747546244570,-450.0,0.00013698,2]
[361389044,1747546244579,-400.0,0.00013698,2]
[361389045,1747546244588,-400.0,0.00013698,2]
[361389046,1747546244597,-401.48515166,0.00013698,2]
[361389047,1747546244607,-400.0,0.00013698,2]
[361389048,1747546244616,-400.0,0.00013698,2]
[361389049,1747546244627,-450.0,0.00013698,2]
[361389050,1747546244638,-450.0,0.00013698,2]
[361389051,1747546244648,-450.0,0.00013698,2]
[361389052,1747546244657,-450.0,0.00013698,2]
[361389053,1747546244667,-450.0,0.00013698,2]
[361389054,1747546244677,-450.0,0.00013698,2]
[361389055,1747546244687,-400.0,0.00013698,2]
[361389056,1747546244697,-502.67224931,0.00013698,2]
[361389057,1747546244706,-450.0,0.00013698,2]
[361389058,1747546244716,-402.00983343,0.00013698,2]
[361389059,1747546244727,-450.0,0.00013698,2]
[361389060,1747546244738,-400.0,0.00013698,2]
[361389061,1747546244747,-400.0,0.00013698,2]
[361389062,1747546244756,-400.0,0.00013698,2]
[361389063,1747546244767,-367.37387271,0.00013698,2]
[361389064,1747546244776,-401.7869818,0.00013698,2]
[361389065,1747546244787,-403.70991913,0.00013698,2]
[361389066,1747546244798,-400.0,0.00013698,2]
[361389067,1747546244808,-400.0,0.00013698,2]
[361389068,1747546244818,-402.7441597,0.00013698,2]
[361389069,1747546244829,-402.03573371,0.00013698,2]
[361389070,1747546244839,-400.0,0.00013698,2]
[361389071,1747546244849,-400.0,0.00013698,2]
[361389072,1747546244859,-400.0,0.00013698,2]
[361389073,1747546244870,-400.0,0.00013698,2]
[361389074,1747546244881,-400.0,0.00013698,2]
[361389075,1747546244890,-400.0,0.00013698,2]
[361389076,1747546244900,-469.10966085,0.00013698,2]
[361389077,1747546244910,-453.24,0.00013698,2]
[361389078,1747546244919,-403.66680865,0.00013698,2]
[361389079,1747546244928,-450.0,0.00013698,2]
[361389080,1747546244937,-350.0,0.00013698,2]
[361389081,1747546244946,-400.79382093,0.00013698,2]
[361389082,1747546244955,-400.0,0.00013698,2]
[361389083,1747546244965,-411.32365653,0.00013698,2]
[361389084,1747546244975,-151.0,0.00013698,2]
[361389085,1747546244985,-400.07433816,0.00013698,2]
[361389086,1747546244995,-400.0,0.00013698,2]
[361389087,1747546245004,-402.14599486,0.00013698,2]
[361389088,1747546245015,-560.35,0.00013698,2]
[361389089,1747546245024,-191.70276032,0.00013698,2]
[361389090,1747546245035,-258.72,0.00013698,2]
[361389091,1747546245045,-450.0,0.00013698,2]
[361389092,1747546245055,-450.0,0.00013698,2]
[361389093,1747546245064,-402.90442869,0.00013698,2]
[361389094,1747546245074,-450.0,0.00013698,2]
[361389095,1747546245084,-450.0,0.00013698,2]
[361389096,1747546245094,-406.96046917,0.00013698,2]
[361389097,1747546245103,-493.89,0.00013698,2]
[361389098,1747546245113,-450.0,0.00013698,2]
[361389099,1747546245123,-152.360402,0.00013698,2]
[361389100,1747546245133,-151.0,0.00013698,2]
[361389101,1747546245142,-450.0,0.00013698,2]
[361389102,1747546245151,-450.0,0.00013698,2]
[361389103,1747546245160,-450.0,0.00013698,2]
[361389104,1747546245170,-151.0,0.00013698,2]
[361389105,1747546245180,-151.0,0.00013698,2]
[361389106,1747546245190,-450.0,0.00013698,2]
[361389107,1747546245199,-450.0,0.00013698,2]
[361389108,1747546245209,-151.0,0.00013698,2]
[361389109,1747546245219,-450.0,0.00013698,2]
[361389110,1747546245229,-450.0,0.00013698,2]
[361389111,1747546245239,-450.0,0.00013698,2]
[361389112,1747546245248,-396.62493815,0.00013698,2]
[361389113,1747546245259,-193.85438719,0.00013698,2]
[361389114,1747546245268,-151.0,0.00013698,2]
[361389115,1747546245279,-226.02228794,0.00013698,2]
[361389116,1747546245289,-450.0,0.00013698,2]
[361389117,1747546245299,-450.0,0.00013698,2]
[361389118,1747546245308,-450.0,0.00013698,2]
[361389119,1747546245318,-450.0,0.00013698,2]
[361389120,1747546245328,-450.0,0.00013698,2]
[361389121,1747546245338,-151.0,0.00013698,2]
[361389122,1747546245347,-450.0,0.00013698,2]
[361389123,1747546245357,-450.0,0.00013698,2]
[361389124,1747546245367,-450.0,0.00013698,2]
[361389125,1747546245376,-450.0,0.00013698,2]
[361389126,1747546245386,-450.0,0.00013698,2]
[361389127,1747546245395,-460.3249219,0.00013698,2]
[361389128,1747546245405,-454.59090375,0.00013698,2]
[361389129,1747546245416,-453.54962649,0.00013698,2]
[361389130,1747546245425,-450.0,0.00013698,2]
[361389131,1747546245435,-151.0,0.00013698,2]
[361389132,1747546245444,-450.0,0.00013698,2]
[361389133,1747546245454,-450.0,0.00013698,2]
[361389134,1747546245463,-450.0,0.00013698,2]
[361389135,1747546245473,-151.0,0.00013698,2]
[361389136,1747546245483,-151.0,0.00013698,2]
[361389137,1747546245492,-223.867646,0.00013698,2]
[361389138,1747546245502,-151.0,0.00013698,2]
[361389139,1747546245512,-223.867646,0.00013698,2]
[361389140,1747546245522,-191.19989811,0.00013698,2]
[361389141,1747546245532,-450.0,0.00013698,2]
[361389142,1747546245542,-450.0,0.00013698,2]
[361389143,1747546245552,-151.0,0.00013698,2]
[361389144,1747546245562,-451.96350316,0.00013698,2]
[361389145,1747546245571,-539.82,0.00013698,2]
[361389146,1747546245581,-450.0,0.00013698,2]
[361389147,1747546245590,-151.0,0.00013698,2]
[361389148,1747546245599,-500.0,0.00013698,2]
[361389149,1747546245610,-189.744324,0.00013699,2]
[361389150,1747546245620,-151.0,0.00013699,2]
[361389151,1747546245630,-500.0,0.00013699,2]
[361389152,1747546245639,-500.0,0.00013699,2]
[361389153,1747546245649,-500.0,0.00013699,2]
[361389154,1747546245659,-410.58985971,0.00013699,2]
[361389155,1747546245669,-500.0,0.00013699,2]
[361389156,1747546245679,-500.0,0.00013699,2]
[361389157,1747546245688,-500.0,0.00013699,2]
[361389158,1747546245698,-500.0,0.00013699,2]
[361389159,1747546245707,-500.0,0.00013699,2]
[361389160,1747546245716,-500.0,0.00013699,2]
[361389161,1747546245726,-151.718299,0.00013699,2]
[361389162,1747546245736,-633.25778068,0.00013715,2]
[361389163,1747546245745,-151.0,0.00013748,2]
[361389164,1747546245754,-500.0,0.000138,2]
[361389165,1747546245764,-500.0,0.000138,2]
[361389166,1747546245774,-500.0,0.000138,2]
[361389168,1747546245784,-500.0,0.00013806,2]
[361389169,1747546245794,-151.0,0.00013821,2]
[361389170,1747546245803,-505.54380235,0.00013821,2]
[361389171,1747546245812,-474.8,0.00013835,2]
[361389172,1747546245822,-200.89456035,0.00013835,2]
[361389173,1747546245831,-152.462944,0.00013835,2]
[361389174,1747546245841,-450.0,0.00013835,2]
[361389175,1747546245851,-151.0,0.00013835,2]
[361389176,1747546245862,-209.61,0.00013835,2]
[361389177,1747546245874,-151.0,0.00013835,2]
[361389178,1747546245883,-151.0,0.00013835,2]
[361389179,1747546245892,-500.0,0.00013839,2]
[361389181,1747546245902,-151.0,0.0001389,2]
[361389183,1747546245913,-223.867646,0.0001389,2]
[361389185,1747546245923,-223.867646,0.0001389,2]
[361389187,1747546245932,-500.0,0.0001389,2]
[361389189,1747546245942,-300.0,0.00013965,2]
[361389190,1747546245952,-500.0,0.0001397,2]
[361389192,1747546245962,-151.0,0.00013971,2]
[361389194,1747546245972,-164.36148,0.00013971,2]
[361389195,1747546245981,-153.630729,0.00013971,2]
[361389196,1747546245991,-151.0,0.00013971,2]
[361389197,1747546246000,-151.0,0.00013971,2]
[361389198,1747546246009,-450.0,0.00013972,2]
[361389199,1747546246018,-400.0,0.00013972,2]
[361389200,1747546246028,-825.0,0.00014004,2]
[361389201,1747546246037,-450.0,0.00014109,2]
[361389202,1747546246047,-998.55070715,0.00014152,2]
[361389203,1747546246057,-160.0,0.00014154,2]
[361389204,1747546246067,-422.53311782,0.00014154,2]
[361389206,1747546246076,-160.0,0.00014154,2]
[361389208,1747546246086,-160.0,0.00014154,2]
[361389210,1747546246095,-212.32903618,0.00014154,2]
[361389212,1747546246104,-151.0,0.00014155,2]
[361389214,1747546246114,-151.0,0.00014158,2]
[361389216,1747546246124,-151.0,0.00014158,2]
[361389217,1747546246133,-151.0,0.00014158,2]
[361389219,1747546246143,-151.0,0.00014158,2]
[361389221,1747546246152,-151.0,0.00014158,2]
[361389223,1747546246162,-151.0,0.00014246,2]
[361389224,1747546246171,-151.0,0.00014246,2]
[361389226,1747546246180,-450.0,0.00014246,2]
[361389228,1747546246190,-151.0,0.00014246,2]
[361389229,1747546246199,-151.0,0.00014246,2]
[361389231,1747546246208,-151.0,0.00014254,2]
[361389233,1747546246218,-223.867646,0.00014254,2]
[361389234,1747546246227,-223.867646,0.00014254,2]
[361389235,1747546246236,-2702.5905511,0.00014254,2]
[361389236,1747546246246,-500.0,0.00014354,2]
[361389237,1747546246255,-450.0,0.00014383,2]
[361389239,1747546246265,-6174.23102593,0.0001452,2]
[361389240,1747546246275,-151.0,0.0001452,2]
[361389241,1747546246284,-253.004543,0.0001452,2]
[361389242,1747546246293,-151.0,0.0001452,2]
[361389243,1747546246303,-152.915062,0.0001452,2]
[361389244,1747546246312,-151.0,0.0001452,2]
[361389245,1747546246322,-151.0,0.0001452,2]
[361389246,1747546246331,-151.0,0.0001452,2]
[361389247,1747546246341,-151.0,0.0001452,2]
[361389248,1747546246351,-151.0,0.0001452,2]
[361389249,1747546246360,-450.0,0.0001452,2]
[361389250,1747546246370,-151.0,0.0001452,2]
[361389251,1747546246380,-450.0,0.00014657,2]
[361389252,1747546246389,-450.0,0.00014794,2]
[361389253,1747546246399,-450.0,0.00014931,2]
[361389254,1747546246408,-499.999999,0.00014958,2]
[361389255,1747546246418,-2144.0,0.00015,14]
[361389256,1747546246428,-278.02,0.00015068,2]
[361389257,1747546246438,-651.79154688,0.00015174,2]
[361389258,1747546246447,-151.0,0.00016383,2]
[361389259,1747546246457,-151.0,0.00016383,2]
[361389260,1747546246467,-651.79154688,0.00016749,2]
[361389261,1747546246476,-151.0,0.00016796,2]
[361389262,1747546246485,-151.0,0.00016796,2]
[361389263,1747546246495,-151.0,0.00016796,2]
[361389264,1747546246504,-179.2456987,0.00016986,2]
[361389265,1747546246514,-252.198612,0.0001716,2]
[361389266,1747546246523,-189.528,0.0001721,2]
[361389268,1747546246532,-153.785505,0.00017624,2]
[361389269,1747546246541,-223.867646,0.00017624,2]
[361389270,1747546246551,-223.867646,0.00017624,2]
[361389271,1747546246560,-3000.0,0.00017941,2]
[361389272,1747546246570,-160.0,0.00017998,2]
[361389273,1747546246580,-5000.0,0.00018,2]
[361389274,1747546246589,-5000.0,0.00018,2]
[361389275,1747546246599,-5000.0,0.00018,2]
[361389276,1747546246610,-2706.0,0.00018,2]
[361389277,1747546246619,-200.0,0.00018,2]
[361389278,1747546246628,-151.0,0.00018,2]
[361389279,1747546246637,-151.0,0.00018,2]
[361389280,1747546246646,-151.0,0.00018,2]
[361389281,1747546246657,-151.0,0.00018,2]
[361389282,1747546246666,-151.0,0.00018,2]
[361389283,1747546246677,-151.0,0.00018,2]
[361389284,1747546246687,-151.0,0.00018,2]
[361389285,1747546246697,-151.0,0.00018,2]
[361389286,1747546246707,-151.0,0.00018,2]
[361389287,1747546246716,-151.0,0.00018,2]
[361389288,1747546246727,-151.0,0.00018,2]
[361389289,1747546246737,-151.0,0.00018,2]
[361389290,1747546246746,-151.0,0.00018,2]
[361389291,1747546246755,-223.867646,0.00018,2]
[361389292,1747546246764,-204.794518,0.00018,2]
[361389293,1747546246773,-223.867646,0.00018,2]
[361389294,1747546246783,-187.257331,0.00018,2]
[361389295,1747546246792,-651.79154688,0.00018325,2]
[361389296,1747546246802,-168.61002784,0.00018763,2]
[361389297,1747546246811,-151.0,0.000189,2]
[361389298,1747546246933,-151.0,0.000189,2]
[361389299,1747546246943,-151.0,0.000189,2]
[361389300,1747546246953,-247.573881,0.000189,2]
[361389301,1747546246963,-153.385855,0.000189,2]
[361389302,1747546246971,-151.0,0.000189,2]
[361389303,1747546246981,-155.171107,0.0001899,2]
[361389304,1747546246990,-297.69498962,0.00019037,2]
[361389305,1747546247139,-2702.30501038,0.00019037,2]
[361389306,1747546247148,-182.1289,0.00019037,2]
[361389307,1747546247157,-280.78839,0.00019104,2]
[361389308,1747546247167,-151.0,0.00019104,2]
[361389309,1747546247176,-600.0,0.00019104,2]
[361389310,1747546247186,-155.0,0.00019178,2]
[361389311,1747546247195,-855.966526,0.00019178,2]
[361389312,1747546247204,-24009.51698397,0.00019229,2]
[361389313,1747546247214,-151.0,0.00019279,2]
[361389314,1747546247223,-151.0,0.00019279,2]
[361389315,1747546247232,-151.0,0.00019303,2]
[361389316,1747546247241,-223.867646,0.00019303,2]
[361389317,1747546247250,-223.867646,0.00019303,2]
[361389318,1747546247262,-600.0,0.00019303,2]
[361389319,1747546247271,-151.0,0.00019328,2]
[361389320,1747546247280,-500.0,0.00019328,2]
[361389321,1747546247290,-500.0,0.00019328,2]